[Event "Late-Titled-Tuesday-Blitz-October-10-2023"]
[Site "Chess.com"]
[Date "2023.10.10"]
[Round "10"]
[White "ThaBarWa"]
[Black "hakanazeri2"]
[Result "0-1"]
[WhiteElo "2437"]
[BlackElo "2598"]
[TimeControl "180+1"]
[EndTime "15:50:54 PDT"]
[Termination "hakanazeri2 won on time"]

1. d4 {[%clk 0:03:00.9]} 1... d5 {[%clk 0:02:57.7]} 2. c4 {[%clk 0:03:01.4]}
2... c6 {[%clk 0:02:57.4]} 3. Nf3 {[%clk 0:03:01.3]} 3... Nf6 {[%clk 0:02:57.4]}
4. Nc3 {[%clk 0:03:01.3]} 4... dxc4 {[%clk 0:02:57.8]} 5. a4 {[%clk 0:03:00.6]}
5... Bf5 {[%clk 0:02:57.3]} 6. Ne5 {[%clk 0:03:00.5]} 6... e6 {[%clk 0:02:57]}
7. f3 {[%clk 0:02:59.8]} 7... Bb4 {[%clk 0:02:55.7]} 8. Nxc4 {[%clk 0:02:52.6]}
8... O-O {[%clk 0:02:46.8]} 9. e4 {[%clk 0:02:52.5]} 9... Bxe4 {[%clk
0:02:44.7]} 10. fxe4 {[%clk 0:02:51.9]} 10... Nxe4 {[%clk 0:02:45.6]} 11. Qd3
{[%clk 0:02:48.3]} 11... f5 {[%clk 0:02:03.1]} 12. Be2 {[%clk 0:02:41.6]} 12...
Qh4+ {[%clk 0:01:59.2]} 13. g3 {[%clk 0:02:40.9]} 13... Qh3 {[%clk 0:01:58.6]}
14. Bf4 {[%clk 0:02:13.2]} 14... Qg2 {[%clk 0:01:18.6]} 15. O-O-O {[%clk
0:02:10.8]} 15... Nf2 {[%clk 0:01:12]} 16. Qf3 {[%clk 0:02:03.4]} 16... Qxf3
{[%clk 0:01:06.5]} 17. Bxf3 {[%clk 0:02:04.3]} 17... Nxh1 {[%clk 0:01:07]} 18.
Bxh1 {[%clk 0:02:00]} 18... Nd7 {[%clk 0:01:05.6]} 19. Na2 {[%clk 0:01:48.5]}
19... Be7 {[%clk 0:00:54.8]} 20. Re1 {[%clk 0:01:47.2]} 20... Nb6 {[%clk
0:00:54.1]} 21. Nxb6 {[%clk 0:01:41.9]} 21... axb6 {[%clk 0:00:55]} 22. Rxe6
{[%clk 0:01:42.1]} 22... Bf6 {[%clk 0:00:51.6]} 23. Be5 {[%clk 0:01:01.3]} 23...
Rxa4 {[%clk 0:00:47.7]} 24. Nc3 {[%clk 0:01:01.4]} 24... Ra1+ {[%clk 0:00:45.5]}
25. Nb1 {[%clk 0:01:01.9]} 25... Kf7 {[%clk 0:00:39.1]} 26. Rd6 {[%clk
0:00:59.9]} 26... Ke7 {[%clk 0:00:38]} 27. Kc2 {[%clk 0:00:49.8]} 27... Ra5
{[%clk 0:00:26.7]} 28. Nc3 {[%clk 0:00:36.6]} 28... Bxe5 {[%clk 0:00:26.2]} 29.
dxe5 {[%clk 0:00:37.5]} 29... Rxe5 {[%clk 0:00:26.9]} 30. Rd4 {[%clk 0:00:36.4]}
30... b5 {[%clk 0:00:26.5]} 31. Bg2 {[%clk 0:00:34.7]} 31... Ra8 {[%clk
0:00:24.7]} 32. Rd2 {[%clk 0:00:30.6]} 32... Ra1 {[%clk 0:00:23.9]} 33. Ne2
{[%clk 0:00:30.2]} 33... g5 {[%clk 0:00:21.9]} 34. Nd4 {[%clk 0:00:30.4]} 34...
Rg1 {[%clk 0:00:18.5]} 35. Bh3 {[%clk 0:00:28.9]} 35... g4 {[%clk 0:00:18.4]}
36. Bg2 {[%clk 0:00:29.6]} 36... h5 {[%clk 0:00:18.4]} 37. Rf2 {[%clk
0:00:28.2]} 37... Kf6 {[%clk 0:00:18.3]} 38. Bf1 {[%clk 0:00:28.7]} 38... Rc5+
{[%clk 0:00:15.6]} 39. Kb3 {[%clk 0:00:27.4]} 39... Rd5 {[%clk 0:00:15.9]} 40.
Kc3 {[%clk 0:00:22.9]} 40... b4+ {[%clk 0:00:15.1]} 41. Kc4 {[%clk 0:00:16.9]}
41... b5+ {[%clk 0:00:15.3]} 42. Kd3 {[%clk 0:00:11.2]} 42... c5 {[%clk
0:00:15.3]} 0-1

[Event "Late-Titled-Tuesday-Blitz-October-10-2023"]
[Site "Chess.com"]
[Date "2023.10.10"]
[Round "10"]
[White "SEBAZZANO"]
[Black "SanchezKelvin"]
[Result "0-1"]
[WhiteElo "2246"]
[BlackElo "2565"]
[TimeControl "180+1"]
[EndTime "15:50:58 PDT"]
[Termination "SanchezKelvin won on time"]

1. d4 {[%clk 0:03:00.3]} 1... Nf6 {[%clk 0:02:58.4]} 2. Bf4 {[%clk 0:02:59.8]}
2... d5 {[%clk 0:02:53.2]} 3. e3 {[%clk 0:02:59.4]} 3... c5 {[%clk 0:02:51.7]}
4. c3 {[%clk 0:02:59.1]} 4... Nc6 {[%clk 0:02:51.4]} 5. Nd2 {[%clk 0:02:58.8]}
5... Qb6 {[%clk 0:02:49.6]} 6. Qb3 {[%clk 0:02:55.7]} 6... c4 {[%clk 0:02:49.9]}
7. Qc2 {[%clk 0:02:55.4]} 7... Nh5 {[%clk 0:02:48.6]} 8. Bg3 {[%clk 0:02:49.1]}
8... g6 {[%clk 0:02:47.7]} 9. Be2 {[%clk 0:02:45]} 9... Nxg3 {[%clk 0:02:42.4]}
10. hxg3 {[%clk 0:02:45.9]} 10... Bg7 {[%clk 0:02:42]} 11. e4 {[%clk 0:02:42.6]}
11... e6 {[%clk 0:02:37.8]} 12. Ngf3 {[%clk 0:02:36.9]} 12... Bd7 {[%clk
0:02:35.6]} 13. O-O {[%clk 0:02:28.2]} 13... O-O {[%clk 0:02:34.3]} 14. e5
{[%clk 0:02:19.2]} 14... f5 {[%clk 0:02:22.2]} 15. exf6 {[%clk 0:02:10.5]} 15...
Rxf6 {[%clk 0:02:19.8]} 16. b3 {[%clk 0:01:40.2]} 16... cxb3 {[%clk 0:02:12.9]}
17. Qxb3 {[%clk 0:01:39.9]} 17... Qc7 {[%clk 0:02:09.3]} 18. Rab1 {[%clk
0:01:38.8]} 18... Na5 {[%clk 0:02:05]} 19. Qb2 {[%clk 0:01:17.4]} 19... Rc8
{[%clk 0:02:00.2]} 20. Ne5 {[%clk 0:01:10.3]} 20... Be8 {[%clk 0:01:55.1]} 21.
c4 {[%clk 0:01:06.2]} 21... dxc4 {[%clk 0:01:43.9]} 22. Ndxc4 {[%clk 0:01:05.8]}
22... Nc6 {[%clk 0:01:38.5]} 23. Nxc6 {[%clk 0:00:40.4]} 23... Bxc6 {[%clk
0:01:36.3]} 24. Ne5 {[%clk 0:00:40.5]} 24... Bd5 {[%clk 0:01:35.6]} 25. Bf3
{[%clk 0:00:41]} 25... Rf5 {[%clk 0:01:06.8]} 26. Bxd5 {[%clk 0:00:35.9]} 26...
exd5 {[%clk 0:01:07]} 27. Qxb7 {[%clk 0:00:33.2]} 27... Bxe5 {[%clk 0:01:02.6]}
28. Qxd5+ {[%clk 0:00:20.6]} 28... Qf7 {[%clk 0:00:38]} 29. Qxf7+ {[%clk
0:00:19.3]} 29... Kxf7 {[%clk 0:00:38.2]} 30. dxe5 {[%clk 0:00:18.7]} 30... Rxe5
{[%clk 0:00:38.5]} 31. Rb7+ {[%clk 0:00:17.9]} 31... Re7 {[%clk 0:00:38.7]} 32.
Rfb1 {[%clk 0:00:14.4]} 32... Rcc7 {[%clk 0:00:35.6]} 33. Rxc7 {[%clk
0:00:13.7]} 33... Rxc7 {[%clk 0:00:35.7]} 34. Rb2 {[%clk 0:00:13.8]} 34... Ke6
{[%clk 0:00:35.8]} 35. f3 {[%clk 0:00:13.7]} 35... Ke5 {[%clk 0:00:35.9]} 36.
Kf2 {[%clk 0:00:14.2]} 36... Kd4 {[%clk 0:00:36.4]} 37. Ke2 {[%clk 0:00:08.5]}
37... Kc3 {[%clk 0:00:35.9]} 38. Rb3+ {[%clk 0:00:08.2]} 38... Kc2 {[%clk
0:00:34.2]} 39. Ra3 {[%clk 0:00:04.3]} 39... Re7+ {[%clk 0:00:30.9]} 40. Kf2
{[%clk 0:00:04]} 40... Kb2 {[%clk 0:00:30.4]} 41. Ra6 {[%clk 0:00:03.4]} 41...
Kc3 {[%clk 0:00:27.7]} 42. g4 {[%clk 0:00:02.5]} 42... Kb4 {[%clk 0:00:27.4]}
43. Kg3 {[%clk 0:00:01.8]} 43... Kb5 {[%clk 0:00:27.7]} 44. Ra3 {[%clk
0:00:01.6]} 44... a5 {[%clk 0:00:28.6]} 45. Rb3+ {[%clk 0:00:01.6]} 45... Kc4
{[%clk 0:00:28.7]} 46. Rb2 {[%clk 0:00:01.7]} 46... a4 {[%clk 0:00:27.8]} 47.
Rc2+ {[%clk 0:00:01.6]} 47... Kd3 {[%clk 0:00:27.5]} 0-1

[Event "Late-Titled-Tuesday-Blitz-October-10-2023"]
[Site "Chess.com"]
[Date "2023.10.10"]
[Round "10"]
[White "Alphafischer2019"]
[Black "Harald_Schmidt"]
[Result "1-0"]
[WhiteElo "2579"]
[BlackElo "2377"]
[TimeControl "180+1"]
[EndTime "15:51:01 PDT"]
[Termination "Alphafischer2019 won on time"]

1. e4 {[%clk 0:03:00.9]} 1... c6 {[%clk 0:02:57]} 2. d4 {[%clk 0:03:00.3]} 2...
d5 {[%clk 0:02:56.5]} 3. Nc3 {[%clk 0:03:00.7]} 3... a6 {[%clk 0:02:55.3]} 4.
Nf3 {[%clk 0:02:57.4]} 4... Bg4 {[%clk 0:02:54.1]} 5. e5 {[%clk 0:02:56.5]} 5...
e6 {[%clk 0:02:52.2]} 6. Be3 {[%clk 0:02:46.7]} 6... c5 {[%clk 0:02:47.7]} 7.
dxc5 {[%clk 0:02:41.5]} 7... Nc6 {[%clk 0:02:47.2]} 8. Be2 {[%clk 0:02:35.2]}
8... Nge7 {[%clk 0:02:41.1]} 9. Na4 {[%clk 0:02:19.7]} 9... Nf5 {[%clk
0:02:38.5]} 10. Bd2 {[%clk 0:02:10.2]} 10... Nxe5 {[%clk 0:02:21.9]} 11. Nxe5
{[%clk 0:02:05.3]} 11... Bxe2 {[%clk 0:02:19.6]} 12. Qxe2 {[%clk 0:02:05.2]}
12... Qc7 {[%clk 0:02:12.7]} 13. Nd3 {[%clk 0:01:59]} 13... Nd4 {[%clk
0:02:03.1]} 14. Qd1 {[%clk 0:01:57.4]} 14... e5 {[%clk 0:02:02.5]} 15. Nb6
{[%clk 0:01:56.7]} 15... Rd8 {[%clk 0:02:01.4]} 16. c3 {[%clk 0:01:53.6]} 16...
Nc6 {[%clk 0:02:00.9]} 17. O-O {[%clk 0:01:46.8]} 17... e4 {[%clk 0:02:00.3]}
18. Bf4 {[%clk 0:01:47.4]} 18... Qe7 {[%clk 0:01:54.1]} 19. Nb4 {[%clk
0:01:27.8]} 19... Qxc5 {[%clk 0:01:16.5]} 20. N4xd5 {[%clk 0:01:18.4]} 20... Bd6
{[%clk 0:01:13.1]} 21. Be3 {[%clk 0:01:16.3]} 21... Qb5 {[%clk 0:01:05.2]} 22.
Qg4 {[%clk 0:01:07.8]} 22... O-O {[%clk 0:00:58]} 23. b4 {[%clk 0:00:43.7]}
23... f5 {[%clk 0:00:50.4]} 24. Qh3 {[%clk 0:00:43.2]} 24... Ne5 {[%clk
0:00:46.2]} 25. Rac1 {[%clk 0:00:35.2]} 25... Nd3 {[%clk 0:00:30.5]} 26. c4
{[%clk 0:00:33.9]} 26... Qe8 {[%clk 0:00:28]} 27. Rcd1 {[%clk 0:00:32.5]} 27...
Nxb4 {[%clk 0:00:21.8]} 28. c5 {[%clk 0:00:29.6]} 28... Nxd5 {[%clk 0:00:20.1]}
29. Nxd5 {[%clk 0:00:30.4]} 29... Be5 {[%clk 0:00:17.5]} 30. g3 {[%clk 0:00:30]}
30... Qe6 {[%clk 0:00:14.5]} 31. Nf4 {[%clk 0:00:29.3]} 31... Qxa2 {[%clk
0:00:12.5]} 32. Rxd8 {[%clk 0:00:29.1]} 32... Rxd8 {[%clk 0:00:11.9]} 33. Qxf5
{[%clk 0:00:29.7]} 33... Bxf4 {[%clk 0:00:09.8]} 34. Bxf4 {[%clk 0:00:28.9]}
34... Qd5 {[%clk 0:00:09.2]} 35. Qxd5+ {[%clk 0:00:27.2]} 35... Rxd5 {[%clk
0:00:08.9]} 36. Rc1 {[%clk 0:00:27.9]} 36... Kf7 {[%clk 0:00:06.9]} 37. c6
{[%clk 0:00:27.5]} 37... bxc6 {[%clk 0:00:06.9]} 38. Rxc6 {[%clk 0:00:28.4]}
38... a5 {[%clk 0:00:07.6]} 39. Ra6 {[%clk 0:00:26.5]} 39... Rd1+ {[%clk
0:00:07]} 40. Kg2 {[%clk 0:00:26.8]} 40... Ra1 {[%clk 0:00:07.8]} 41. Be5 {[%clk
0:00:27.1]} 41... Ra2 {[%clk 0:00:06.8]} 42. Ra7+ {[%clk 0:00:27.5]} 42... Ke6
{[%clk 0:00:06.7]} 43. Bd4 {[%clk 0:00:27.5]} 43... g6 {[%clk 0:00:03.8]} 44. h4
{[%clk 0:00:26.9]} 44... h5 {[%clk 0:00:03.1]} 45. Ra6+ {[%clk 0:00:26.4]} 45...
Kd5 {[%clk 0:00:03]} 46. Be3 {[%clk 0:00:26.4]} 46... a4 {[%clk 0:00:03.1]} 47.
Rxg6 {[%clk 0:00:26.3]} 47... Kc4 {[%clk 0:00:01.1]} 48. g4 {[%clk 0:00:23.8]}
1-0

[Event "Late-Titled-Tuesday-Blitz-October-10-2023"]
[Site "Chess.com"]
[Date "2023.10.10"]
[Round "10"]
[White "GaiozNigalidze"]
[Black "cande_francisco"]
[Result "1-0"]
[WhiteElo "2722"]
[BlackElo "2527"]
[TimeControl "180+1"]
[EndTime "15:51:05 PDT"]
[Termination "GaiozNigalidze won by checkmate"]

1. e4 {[%clk 0:02:52.5]} 1... c5 {[%clk 0:02:59.8]} 2. Nf3 {[%clk 0:02:51.9]}
2... g6 {[%clk 0:03:00.3]} 3. a4 {[%clk 0:02:51.8]} 3... Bg7 {[%clk 0:03:00.3]}
4. h4 {[%clk 0:02:52.3]} 4... Nc6 {[%clk 0:03:00.8]} 5. c4 {[%clk 0:02:52.5]}
5... h5 {[%clk 0:02:57.4]} 6. Nc3 {[%clk 0:02:52.8]} 6... d6 {[%clk 0:02:56.9]}
7. Be2 {[%clk 0:02:52.5]} 7... e6 {[%clk 0:02:56.6]} 8. d3 {[%clk 0:02:52.5]}
8... Nge7 {[%clk 0:02:56.4]} 9. Ng5 {[%clk 0:02:52.9]} 9... Nd4 {[%clk
0:02:53.5]} 10. Be3 {[%clk 0:02:51.3]} 10... Nec6 {[%clk 0:02:53]} 11. Rc1
{[%clk 0:02:43.3]} 11... a6 {[%clk 0:02:52.6]} 12. g3 {[%clk 0:02:32.3]} 12...
Rb8 {[%clk 0:02:51.7]} 13. O-O {[%clk 0:02:32.1]} 13... Nxe2+ {[%clk 0:02:33.1]}
14. Qxe2 {[%clk 0:02:27.3]} 14... O-O {[%clk 0:02:30.5]} 15. Nf3 {[%clk
0:02:18.7]} 15... Nd4 {[%clk 0:02:27.2]} 16. Qd1 {[%clk 0:02:08.8]} 16... e5
{[%clk 0:02:19.1]} 17. Nd2 {[%clk 0:01:26.3]} 17... Bg4 {[%clk 0:02:07]} 18. f3
{[%clk 0:01:26.1]} 18... Bh3 {[%clk 0:02:05.6]} 19. Rf2 {[%clk 0:01:25.1]} 19...
Be6 {[%clk 0:01:55.2]} 20. Kg2 {[%clk 0:01:13.6]} 20... Qd7 {[%clk 0:01:48.4]}
21. Ra1 {[%clk 0:01:09.4]} 21... f5 {[%clk 0:01:43.2]} 22. Bg5 {[%clk
0:00:54.7]} 22... f4 {[%clk 0:01:39.8]} 23. gxf4 {[%clk 0:00:55.6]} 23... exf4
{[%clk 0:01:38.7]} 24. Kh2 {[%clk 0:00:56.3]} 24... b5 {[%clk 0:01:32.4]} 25.
cxb5 {[%clk 0:00:50.8]} 25... axb5 {[%clk 0:01:32.1]} 26. a5 {[%clk 0:00:51.4]}
26... Ra8 {[%clk 0:01:23.8]} 27. Nd5 {[%clk 0:00:49.3]} 27... Bxd5 {[%clk
0:01:15]} 28. exd5 {[%clk 0:00:49.7]} 28... Qf5 {[%clk 0:01:13.3]} 29. Ne4
{[%clk 0:00:33]} 29... Qxd5 {[%clk 0:01:08.8]} 30. a6 {[%clk 0:00:33.6]} 30...
Rf7 {[%clk 0:01:02.5]} 31. Nc3 {[%clk 0:00:23.5]} 31... Qc6 {[%clk 0:00:57.7]}
32. a7 {[%clk 0:00:20.5]} 32... Rfxa7 {[%clk 0:00:56]} 33. Rxa7 {[%clk
0:00:21.4]} 33... Rxa7 {[%clk 0:00:56.9]} 34. Ne4 {[%clk 0:00:18.1]} 34... Rf7
{[%clk 0:00:56.1]} 35. Qc1 {[%clk 0:00:16.4]} 35... Be5 {[%clk 0:00:52.9]} 36.
Kg2 {[%clk 0:00:16.6]} 36... Nf5 {[%clk 0:00:39.5]} 37. Qa1 {[%clk 0:00:16.5]}
37... Ne3+ {[%clk 0:00:37.4]} 38. Kh2 {[%clk 0:00:16.9]} 38... Qd5 {[%clk
0:00:36.3]} 39. Qa5 {[%clk 0:00:15.4]} 39... Qxd3 {[%clk 0:00:25.1]} 40. Qd8+
{[%clk 0:00:15.3]} 40... Kg7 {[%clk 0:00:20.8]} 41. Be7 {[%clk 0:00:10.2]} 41...
Ng4+ {[%clk 0:00:18.1]} 42. Kg2 {[%clk 0:00:07.1]} 42... Nxf2 {[%clk 0:00:17.6]}
43. Ng5 {[%clk 0:00:06]} 43... Ng4 {[%clk 0:00:06.1]} 44. Bf8+ {[%clk
0:00:06.1]} 44... Rxf8 {[%clk 0:00:02.3]} 45. Qe7+ {[%clk 0:00:06.5]} 45... Kg8
{[%clk 0:00:01.7]} 46. Qh7# {[%clk 0:00:06.6]} 1-0

[Event "Late-Titled-Tuesday-Blitz-October-10-2023"]
[Site "Chess.com"]
[Date "2023.10.10"]
[Round "10"]
[White "K_alena13"]
[Black "PawnEatingZombie"]
[Result "1-0"]
[WhiteElo "2156"]
[BlackElo "2195"]
[TimeControl "180+1"]
[EndTime "15:51:11 PDT"]
[Termination "K_alena13 won on time"]

1. Nf3 {[%clk 0:03:00.9]} 1... Nf6 {[%clk 0:02:55.7]} 2. c4 {[%clk 0:03:00.1]}
2... g6 {[%clk 0:02:54]} 3. Nc3 {[%clk 0:03:00.7]} 3... d5 {[%clk 0:02:53.8]} 4.
cxd5 {[%clk 0:02:59.6]} 4... Nxd5 {[%clk 0:02:54.3]} 5. Qb3 {[%clk 0:02:59.6]}
5... Nb6 {[%clk 0:02:32]} 6. h3 {[%clk 0:02:47.7]} 6... Bg7 {[%clk 0:02:31.5]}
7. e4 {[%clk 0:02:34.4]} 7... c5 {[%clk 0:02:25.4]} 8. d3 {[%clk 0:02:27.5]}
8... O-O {[%clk 0:02:25]} 9. Be2 {[%clk 0:02:26.5]} 9... Nc6 {[%clk 0:02:25.5]}
10. Be3 {[%clk 0:02:23.8]} 10... Be6 {[%clk 0:02:21.8]} 11. Qd1 {[%clk
0:02:20.1]} 11... c4 {[%clk 0:02:08.7]} 12. d4 {[%clk 0:02:06.2]} 12... Nb4
{[%clk 0:02:04.6]} 13. O-O {[%clk 0:01:59.6]} 13... Nd3 {[%clk 0:01:54.6]} 14.
Bxd3 {[%clk 0:01:52.6]} 14... cxd3 {[%clk 0:01:54.5]} 15. d5 {[%clk 0:01:52.5]}
15... Bd7 {[%clk 0:01:54.2]} 16. Qxd3 {[%clk 0:01:47.3]} 16... e6 {[%clk
0:01:54.4]} 17. Bg5 {[%clk 0:01:14.2]} 17... f6 {[%clk 0:01:48]} 18. Be3 {[%clk
0:01:11.7]} 18... exd5 {[%clk 0:01:47.5]} 19. Nxd5 {[%clk 0:01:08.9]} 19... Nxd5
{[%clk 0:01:41.6]} 20. Qxd5+ {[%clk 0:01:07.7]} 20... Kh8 {[%clk 0:01:42.1]} 21.
Rfd1 {[%clk 0:01:07.4]} 21... Bc6 {[%clk 0:01:39.7]} 22. Qc5 {[%clk 0:00:44.1]}
22... Qe8 {[%clk 0:01:34.7]} 23. Nd4 {[%clk 0:00:25.4]} 23... Qxe4 {[%clk
0:01:12.9]} 24. Nxc6 {[%clk 0:00:23.9]} 24... Qxc6 {[%clk 0:01:12.8]} 25. Qxc6
{[%clk 0:00:23.8]} 25... bxc6 {[%clk 0:01:13.7]} 26. Rac1 {[%clk 0:00:23.8]}
26... f5 {[%clk 0:00:43.5]} 27. Rxc6 {[%clk 0:00:21.2]} 27... Bxb2 {[%clk
0:00:42.1]} 28. Rc7 {[%clk 0:00:21.1]} 28... Rfc8 {[%clk 0:00:35.4]} 29. Rb7
{[%clk 0:00:18.1]} 29... Be5 {[%clk 0:00:26.9]} 30. Rdd7 {[%clk 0:00:15.4]}
30... h5 {[%clk 0:00:20.7]} 31. g3 {[%clk 0:00:13.8]} 31... Rc2 {[%clk
0:00:16.6]} 32. Bxa7 {[%clk 0:00:09]} 32... Rxa2 {[%clk 0:00:14.7]} 33. Bd4
{[%clk 0:00:07.3]} 33... Bxd4 {[%clk 0:00:14.5]} 34. Rxd4 {[%clk 0:00:08.2]}
34... R2a7 {[%clk 0:00:11.8]} 35. Rb6 {[%clk 0:00:08]} 35... Kg7 {[%clk
0:00:10.2]} 36. Rdd6 {[%clk 0:00:07.3]} 36... Ra1+ {[%clk 0:00:09.8]} 37. Kg2
{[%clk 0:00:07.2]} 37... R1a2 {[%clk 0:00:07.6]} 38. Rxg6+ {[%clk 0:00:06.9]}
38... Kh7 {[%clk 0:00:08.2]} 39. Rh6+ {[%clk 0:00:07.1]} 39... Kg7 {[%clk
0:00:08.9]} 40. Rxh5 {[%clk 0:00:07.5]} 40... Rf8 {[%clk 0:00:06.7]} 41. Rg5+
{[%clk 0:00:07.7]} 41... Kh7 {[%clk 0:00:05.5]} 42. h4 {[%clk 0:00:08]} 42... f4
{[%clk 0:00:05.6]} 43. Rh5+ {[%clk 0:00:07.8]} 43... Kg7 {[%clk 0:00:05.3]} 44.
Rg5+ {[%clk 0:00:06.8]} 44... Kh7 {[%clk 0:00:05.1]} 45. g4 {[%clk 0:00:07.3]}
45... f3+ {[%clk 0:00:05]} 46. Kg3 {[%clk 0:00:07.8]} 46... Ra1 {[%clk
0:00:04.4]} 47. Rh5+ {[%clk 0:00:06.9]} 47... Kg7 {[%clk 0:00:04.8]} 48. Rf5
{[%clk 0:00:06]} 48... Rg1+ {[%clk 0:00:03.2]} 49. Kxf3 {[%clk 0:00:06]} 49...
Rh1 {[%clk 0:00:02.3]} 50. Kg3 {[%clk 0:00:04.5]} 1-0

[Event "Late-Titled-Tuesday-Blitz-October-10-2023"]
[Site "Chess.com"]
[Date "2023.10.10"]
[Round "10"]
[White "frederiksvane"]
[Black "Polish_fighter3000"]
[Result "0-1"]
[WhiteElo "2914"]
[BlackElo "3060"]
[TimeControl "180+1"]
[EndTime "15:51:18 PDT"]
[Termination "Polish_fighter3000 won by resignation"]

1. e4 {[%clk 0:03:00.9]} 1... c6 {[%clk 0:02:59.3]} 2. d4 {[%clk 0:02:59.7]}
2... d5 {[%clk 0:02:59]} 3. exd5 {[%clk 0:03:00.6]} 3... cxd5 {[%clk 0:02:59.1]}
4. Nf3 {[%clk 0:03:01.3]} 4... Nc6 {[%clk 0:02:59.2]} 5. c3 {[%clk 0:03:02]}
5... Nf6 {[%clk 0:02:58]} 6. Ne5 {[%clk 0:03:02.1]} 6... g6 {[%clk 0:02:49.2]}
7. Bb5 {[%clk 0:03:01.3]} 7... Bd7 {[%clk 0:02:48.9]} 8. Nxd7 {[%clk 0:03:01.7]}
8... Nxd7 {[%clk 0:02:45.8]} 9. O-O {[%clk 0:03:00]} 9... Bg7 {[%clk 0:02:45.9]}
10. Re1 {[%clk 0:02:36]} 10... O-O {[%clk 0:02:45.2]} 11. Bg5 {[%clk 0:02:36.6]}
11... Re8 {[%clk 0:02:41.2]} 12. Nd2 {[%clk 0:02:31.8]} 12... Qb6 {[%clk
0:02:34.7]} 13. Qb3 {[%clk 0:02:21.5]} 13... e6 {[%clk 0:02:30]} 14. h4 {[%clk
0:02:14.2]} 14... a6 {[%clk 0:02:11.7]} 15. Bd3 {[%clk 0:02:12]} 15... Qc7
{[%clk 0:02:10.6]} 16. Nf3 {[%clk 0:02:04.8]} 16... b5 {[%clk 0:02:07.7]} 17. h5
{[%clk 0:02:00.7]} 17... Nb6 {[%clk 0:02:06.3]} 18. h6 {[%clk 0:01:27.6]} 18...
Bf8 {[%clk 0:01:59.5]} 19. Qc2 {[%clk 0:01:01.7]} 19... Rac8 {[%clk 0:01:55.9]}
20. Qe2 {[%clk 0:00:55.1]} 20... Be7 {[%clk 0:01:55.7]} 21. Bxe7 {[%clk
0:00:47]} 21... Qxe7 {[%clk 0:01:48.1]} 22. Qe3 {[%clk 0:00:27.7]} 22... Rb8
{[%clk 0:01:10.6]} 23. Qf4 {[%clk 0:00:24.4]} 23... Rb7 {[%clk 0:00:45.3]} 24.
Re2 {[%clk 0:00:24.4]} 24... Nc4 {[%clk 0:00:34.8]} 25. Rae1 {[%clk 0:00:20]}
25... Nb8 {[%clk 0:00:30.8]} 26. b3 {[%clk 0:00:14.1]} 26... Nd6 {[%clk
0:00:27.4]} 27. Ne5 {[%clk 0:00:13.1]} 27... Nd7 {[%clk 0:00:23.4]} 28. g4
{[%clk 0:00:08.2]} 28... Rc8 {[%clk 0:00:21.9]} 29. Re3 {[%clk 0:00:04.1]} 29...
Nxe5 {[%clk 0:00:21.3]} 30. dxe5 {[%clk 0:00:04.4]} 30... Ne8 {[%clk 0:00:21.7]}
31. c4 {[%clk 0:00:02.9]} 31... bxc4 {[%clk 0:00:20.9]} 32. bxc4 {[%clk
0:00:03.8]} 32... Rb4 {[%clk 0:00:20.6]} 33. a3 {[%clk 0:00:02.2]} 33... Ra4
{[%clk 0:00:20.2]} 34. Qg3 {[%clk 0:00:01.4]} 34... dxc4 {[%clk 0:00:17.9]} 35.
Bc2 {[%clk 0:00:01.9]} 35... Ra5 {[%clk 0:00:18.5]} 36. Qf4 {[%clk 0:00:02]}
36... Nc7 {[%clk 0:00:16.2]} 37. Qf6 {[%clk 0:00:01.3]} 37... Qxf6 {[%clk
0:00:15.9]} 38. exf6 {[%clk 0:00:02.2]} 38... Nd5 {[%clk 0:00:15.9]} 39. Re5
{[%clk 0:00:02.6]} 39... Rxa3 {[%clk 0:00:14.7]} 40. g5 {[%clk 0:00:03.1]} 40...
Ra2 {[%clk 0:00:11.8]} 41. Be4 {[%clk 0:00:02.6]} 41... Rd2 {[%clk 0:00:06.3]}
42. Rc1 {[%clk 0:00:01]} 42... a5 {[%clk 0:00:04.5]} 43. Kf1 {[%clk 0:00:01.3]}
43... a4 {[%clk 0:00:04.6]} 44. Ke1 {[%clk 0:00:01.9]} 44... Rd4 {[%clk
0:00:04.7]} 45. Ke2 {[%clk 0:00:01.8]} 45... c3 {[%clk 0:00:04.7]} 46. Rc2
{[%clk 0:00:02.1]} 46... a3 {[%clk 0:00:04.7]} 47. Bxd5 {[%clk 0:00:01.6]} 47...
Rxd5 {[%clk 0:00:05.6]} 48. Rxd5 {[%clk 0:00:01.6]} 48... exd5 {[%clk
0:00:06.5]} 49. Kd3 {[%clk 0:00:02.2]} 49... Kf8 {[%clk 0:00:05]} 50. Ra2 {[%clk
0:00:01.1]} 50... c2 {[%clk 0:00:04.4]} 51. Kd2 {[%clk 0:00:01.4]} 51... c1=Q+
{[%clk 0:00:04.6]} 0-1